{"text_format":"1","workbook":"xlsx","n_sheets":1,"sheets":["Price Bid Sheet- WC"],"not_rendered":{"charts":0,"images":2,"macros":1,"external_links":0,"defined_names":0,"comments":0,"pivot_tables":0},"unopened":[],"bounds":{"document_bytes":16777216,"sheet_cells":100000,"rows_first":2000,"rows_last":500,"rows_between":2000,"halvings":0,"cell_chars":16384,"cell_head_chars":4096},"cells_cut":0,"cells_raw":0,"read":"whole","date_system":"1900"}

{"sheet":"Price Bid Sheet- WC","index":0,"n_rows":33,"n_cols":7,"rows_kept":33,"cut":false,"hidden":false,"merged":[[0,0,0,6],[1,0,1,6],[2,0,2,5],[4,0,4,6],[5,0,5,6],[30,0,30,4],[32,0,32,6],[29,2,29,6],[24,0,24,4],[25,0,25,4],[26,0,26,4],[27,0,27,4],[28,0,28,4]]}
["            BHARAT HEAVY ELECTRICALS LIMITED JHANSI"]
["                               TOWNSHIP CIVIL DEPARTMENT "]
["  Price Bid ( Three pages)",null,null,null,null,null,"JS-146"]
[null,null,null,null,null,null,"Annexure - I (i)"]
["Name of Work :  Waterproofing  treatment on roofs at type IV, V and above quarters in township area."]
["For Tender Enuiry No: TCX / TW / 21 / 05"]
[]
["Sl. No. ","DSR 2016  Reference ","DESCRIPTION OF ITEMS","Unit ","Qty ","Rate as per DSR 2016","Amount (Rs)"]
[1,"1.1.1/68","Carriage of building rubbish ","cu mtr ",30,78.680000000000007,{"$f":"ROUND(PRODUCT(E9:F9),2)","v":2360.4}]
[2,"5.1.3/97","Providing and laying in position specified grade of reinforced cement\nconcrete, excluding the cost of centering, shuttering, finishing and\nreinforcement - All work up to plinth level……1:2:4 (1 cement : 2 coarse sand : 4 graded stone aggregate 20\nmm nominal size).","Cum",15,3526.24,{"$f":"ROUND(PRODUCT(E10:F10),2)","v":52893.599999999999}]
[3,"5.3/97","Reinforced cement concrete work in beams, suspended floors, roofs\nhaving slope up to 15° landings, balconies, shelves, chajjas, lintels,\nbands, plain window sills, staircases and spiral stair cases above plinth\nlevel up to floor five level, excluding the cost of centering, shuttering,\nfinishing and reinforcement, with 1:1.5:3 (1 cement : 1.5 coarse sand","Cum",25,4610.3999999999996,{"$f":"ROUND(PRODUCT(E11:F11),2)","v":115260}]
[4,"5.22.6/100","Steel reinforcement for R.C.C. work including straightening, cutting, bending, placing in position and binding all complete upto plinth level. Thermo-Mechanically Treated bars of grade Fe-500D or more.","Kg",200,49.62,9924]
[5,"11.3.1/191","Cement concrete flooring 1:2:4 (1 cement : 2 coarse sand : 4 graded\nstone aggregate) finished with a floating coat of neat cement, including\ncement slurry, but excluding the cost of nosing of steps etc. complete.\n11.3.1 40 mm thick with 20 mm nominal size stone aggregate","sqm",50,244.5,12225]
[6,"12.21.1/211","Providing gola 75x75 mm in cement concrete 1:2:4 (1 cement : 2\ncoarse sand : 4 stone aggregate 10 mm and down gauge), including\nfinishing with cement mortar 1:3 (1 cement : 3 fine sand) as per\nstandard design :\n12.21.1 In 75x75 mm deep chase","mtr",150,128.80000000000001,19320]
[7,"15.26/255","Demolishing brick tile covering in terracing including stacking of\nserviceable material and disposal of unserviceable material within\n50 metres lead.","sqm  ",240,45.7,10968]
[8,"15.27/255","Demolishing mud phaska in terracing and disposal of material within\n50 metres lead.","cum ",20,373.95,7479]
[9,"15.56/258","Dismantling old plaster or skirting raking out joints and cleaning the\nsurface for plaster including disposal of rubbish to the dumping ground\nwithin 50 metres lead. ","sq m",150,22.4,3360]
[10,"22.10/383","Providing and laying six courses water proofing treatment with\nbitumen felt over roofs consisting of first, third and fifth courses of\nblown or / and residual bitumen applied hot at 1.45, 1.20 and 1.70\nkg per square metre of area respectively, second and fourth courses\nof roofing felt type 2 grade I (fibre base self finished bitumen felt) six\nand final courses of stone grit 6 mm and down size or pea sized\ngravel spread at 6cu.dm per sqm including preparation of surface,\nexcluding grading, compete.(3 mm thick)","sqm",100,491.58,49158]
[11,"22.14.1/384","Grading roof for water proofing treatment with…...Cement concrete 1:2:4 (1 cement : 2 coarse sand :4 graded stone aggregate 20 mm nominal size)","cum ",22,3366.95,74072.899999999994]
[12,"22.14.2/384","Grading roof for water proofing treatment with…...Cement mortar 1:3 (1 cement : 3 coarse sand)","cum ",15,5778.54,86678.1]
[13,"22.20.1/386","Providing and laying APP (Atactic Polypropylene Polymer) modified\nprefabricated five layer 3 mm thick water proofing membrane, black\nfinished reinforced with non-woven polyester matt consisting of a\ncoat of bitumen primer for bitumen membrane @ 0.40 litre/sqm by\nthe same membrane manufacture of density at 25°C, 0.87-0.89 kg/\nlitre and viscocity 70-160 cps. Over the primer coat the layer of\nmembrane shall be laid using Butane Torch and sealing all joints\netc, and preparing the surface complete. The vital physical and\nchemical parameters of the membrane shall be as under : Joint\nstrength in longitudinal and transverse direction at 23°C as 650/\n450N/5cm. Tear strength in longitudinal and transverse direction as\n300/250N. Softening point of membrane not less than 150°C. Cold\nflexibility shall be upto -2°C when tested in accordance with ASTM,\nD - 5147. The laying of membrane shall be got done through the\nauthorised applicator of the manufacturer of membrane","sqm    ",100,367.78,36778]
[14,"22.21/386","Extra for covering top of membrane with Geotextile, 120 gsm non\nwoven, 100% polyester of thickness 1 to 1.25 mm bonded to\nthe membrane with intermittent touch by heating the membrane by\nButane Torch as per manufactures recommendation.","sqm    ",36,68.239999999999995,2456.64]
[15,"4.12/90","Extra for providing and mixing water proofing material in cement concrete \nwork in doses by weight of cement as per manufacturer's specification.","per bag of 50 kg cement used",360,41.73,{"$f":"ROUND(PRODUCT(E23:F23),2)","v":15022.8}]
[16,"…………….","Any or all item not covered above ","basic value",10000,1,{"$f":"ROUND(PRODUCT(E24:F24),2)","v":10000}]
["Section Total \"A\"",null,null,null,null,null,{"$f":"SUM(G9:G24)","v":507956.44}]
["Section weightage percentage",null,null,null,null,null,1]
["Quoted section amount Sec A ( derived from the Quoted Total Price Bid Value",null,null,null,null,null,{"$f":"G29","v":0}]
["Sectional multiplying factor",null,"Total\"A=A1 x \"",null,null,null,{"$f":"G29/G25","v":0}]
["Total Amount To be quoted by contractor ( in figure )"]
[null,"In Words:",{"$f":"RUP(G29)","v":0}]
["GST extra as applicable"]
[]
["Note -Contractor should quote the prices in cell no. G 29 of excel sheet and then take print out to submit the price bid"]